fUSD/lending_fUSD_20250923
["ID","MTS","AMOUNT","RATE_DAILY","PERIOD"]
[387172601,1758606649630,-369.20864475,0.00019996,2]
[387172602,1758606649639,-520.4,0.00019996,2]
[387172603,1758606649649,-400.0,0.00019996,2]
[387172604,1758606649658,-400.0,0.00019996,2]
[387172605,1758606649668,-400.0,0.00019996,2]
[387172606,1758606649677,-402.20695317,0.00019996,2]
[387172607,1758606649687,-331.96,0.00019996,2]
[387172608,1758606649696,-400.0,0.00019996,2]
[387172609,1758606649706,-437.12,0.00019996,2]
[387172610,1758606649715,-400.0,0.00019996,2]
[387172611,1758606649724,-400.0,0.00019996,2]
[387172612,1758606649733,-280.70597605,0.00019996,2]
[387172613,1758606649743,-400.0,0.00019996,2]
[387172614,1758606649754,-244.06038213,0.00019996,2]
[387172615,1758606649763,-400.0,0.00019996,2]
[387172616,1758606649772,-400.0,0.00019996,2]
[387172617,1758606649782,-500.0,0.00019996,2]
[387172618,1758606649793,-402.86238831,0.00019996,2]
[387172619,1758606649805,-400.0,0.00019996,2]
[387172620,1758606649815,-400.0,0.00019996,2]
[387172621,1758606649824,-413.25,0.00019996,2]
[387172622,1758606649834,-400.0,0.00019996,2]
[387172623,1758606649844,-400.0,0.00019996,2]
[387172624,1758606649854,-407.03803121,0.00019996,2]
[387172625,1758606649864,-400.0,0.00019996,2]
[387172626,1758606649873,-400.0,0.00019996,2]
[387172627,1758606649883,-400.0,0.00019996,2]
[387172628,1758606649893,-400.0,0.00019996,2]
[387172629,1758606649903,-431.34,0.00019996,2]
[387172630,1758606649912,-400.0,0.00019996,2]
[387172631,1758606649922,-400.0,0.00019996,2]
[387172632,1758606649931,-506.19899921,0.00019996,2]
[387172633,1758606649940,-400.0,0.00019996,2]
[387172634,1758606649949,-400.0,0.00019996,2]
[387172635,1758606649959,-400.0,0.00019996,2]
[387172636,1758606649969,-400.0,0.00019996,2]
[387172637,1758606649978,-500.0,0.00019996,2]
[387172638,1758606649988,-400.0,0.00019996,2]
[387172639,1758606649997,-400.0,0.00019996,2]
[387172640,1758606650006,-400.0,0.00019996,2]
[387172641,1758606650016,-226.96,0.00019996,2]
[387172642,1758606650026,-400.0,0.00019996,2]
[387172643,1758606650035,-400.0,0.00019996,2]
[387172644,1758606650045,-400.0,0.00019996,2]
[387172645,1758606650054,-400.0,0.00019996,2]
[387172646,1758606650063,-400.0,0.00019996,2]
[387172647,1758606650072,-400.0,0.00019996,2]
[387172648,1758606650081,-400.0,0.00019996,2]
[387172649,1758606650091,-555.13,0.00019996,2]
[387172650,1758606650100,-400.0,0.00019996,2]
[387172651,1758606650109,-400.0,0.00019996,2]
[387172652,1758606650118,-400.0,0.00019996,2]
[387172653,1758606650128,-236.06,0.00019996,2]
[387172654,1758606650146,-400.0,0.00019996,2]
[387172655,1758606650157,-400.0,0.00019996,2]
[387172656,1758606650167,-400.0,0.00019996,2]
[387172657,1758606650176,-400.0,0.00019996,2]
[387172658,1758606650186,-400.0,0.00019996,2]
[387172659,1758606650195,-400.0,0.00019996,2]
[387172660,1758606650206,-433.94,0.00019996,2]
[387172661,1758606650216,-400.0,0.00019996,2]
[387172662,1758606650226,-197.160719,0.00019996,2]
[387172663,1758606650236,-821.12,0.00019996,2]
[387172664,1758606650245,-400.0,0.00019996,2]
[387172665,1758606650255,-200.0,0.00019996,2]
[387172666,1758606650264,-400.0,0.00019996,2]
[387172667,1758606650274,-400.0,0.00019996,2]
[387172668,1758606650283,-400.0,0.00019996,2]
[387172669,1758606650292,-400.0,0.00019996,2]
[387172670,1758606650302,-400.0,0.00019996,2]
[387172671,1758606650312,-400.0,0.00019996,2]
[387172672,1758606650321,-245.97654253,0.00019996,2]
[387172673,1758606650330,-400.0,0.00019996,2]
[387172674,1758606650340,-534.19131296,0.00019996,2]
[387172675,1758606650349,-400.0,0.00019996,2]
[387172676,1758606650359,-421.07315827,0.00019996,2]
[387172677,1758606650368,-400.0,0.00019996,2]
[387172678,1758606650377,-400.0,0.00019996,2]
[387172679,1758606650388,-400.0,0.00019996,2]
[387172680,1758606650398,-400.0,0.00019996,2]
[387172681,1758606650407,-400.0,0.00019996,2]
[387172682,1758606650419,-404.82484059,0.00019996,2]
[387172683,1758606650430,-400.0,0.00019996,2]
[387172684,1758606650440,-400.0,0.00019996,2]
[387172685,1758606650452,-442.98,0.00019996,2]
[387172686,1758606650462,-400.0,0.00019996,2]
[387172687,1758606650472,-400.0,0.00019996,2]
[387172688,1758606650481,-400.0,0.00019996,2]
[387172689,1758606650492,-500.0,0.00019996,2]
[387172690,1758606650503,-400.0,0.00019996,2]
[387172691,1758606650513,-400.0,0.00019996,2]
[387172692,1758606650524,-400.0,0.00019996,2]
[387172693,1758606650535,-400.0,0.00019996,2]
[387172694,1758606650545,-400.0,0.00019996,2]
[387172695,1758606650555,-400.0,0.00019996,2]
[387172696,1758606650565,-246.87565,0.00019996,2]
[387172697,1758606650574,-400.0,0.00019996,2]
[387172698,1758606650583,-400.0,0.00019996,2]
[387172699,1758606650593,-400.0,0.00019996,2]
[387172700,1758606650603,-400.0,0.00019996,2]
[387172701,1758606650613,-400.0,0.00019996,2]
[387172702,1758606650623,-400.0,0.00019996,2]
[387172703,1758606650633,-400.0,0.00019996,2]
[387172704,1758606650643,-400.0,0.00019996,2]
[387172705,1758606650653,-400.0,0.00019996,2]
[387172706,1758606650663,-706.34,0.00019996,2]
[387172707,1758606650673,-402.37596242,0.00019996,2]
[387172708,1758606650683,-400.0,0.00019996,2]
[387172709,1758606650693,-400.0,0.00019996,2]
[387172710,1758606650704,-400.0,0.00019996,2]
[387172711,1758606650714,-1759.45,0.00019996,2]
[387172712,1758606650724,-544.21,0.00019996,2]
[387172713,1758606650733,-400.0,0.00019996,2]
[387172714,1758606650743,-400.0,0.00019996,2]
[387172715,1758606650753,-400.0,0.00019996,2]
[387172716,1758606650763,-1000.0,0.00019996,2]
[387172717,1758606650773,-400.0,0.00019996,2]
[387172718,1758606650783,-400.0,0.00019996,2]
[387172719,1758606650793,-400.0,0.00019996,2]
[387172720,1758606650807,-431.44,0.00019996,2]
[387172721,1758606650817,-400.0,0.00019996,2]
[387172722,1758606650827,-568.99,0.00019996,2]
[387172723,1758606650839,-400.0,0.00019996,2]
[387172724,1758606650849,-943.76,0.00019996,2]
[387172725,1758606650859,-400.0,0.00019996,2]
[387172726,1758606650870,-400.0,0.00019996,2]
[387172727,1758606650881,-517.07,0.00019996,2]
[387172728,1758606650891,-400.0,0.00019996,2]
[387172729,1758606650901,-623.33,0.00019996,2]
[387172730,1758606650911,-400.0,0.00019996,2]
[387172731,1758606650921,-400.0,0.00019996,2]
[387172732,1758606650931,-546.18,0.00019996,2]
[387172733,1758606650941,-400.0,0.00019996,2]
[387172734,1758606650951,-400.0,0.00019996,2]
[387172735,1758606650963,-400.0,0.00019996,2]
[387172736,1758606650973,-5720.27,0.00019996,2]
[387172737,1758606650983,-400.0,0.00019996,2]
[387172738,1758606650993,-400.0,0.00019996,2]
[387172739,1758606651003,-500.0,0.00019996,2]
[387172740,1758606651014,-440.55,0.00019996,2]
[387172741,1758606651024,-150.0,0.00019996,2]
[387172742,1758606651034,-400.0,0.00019996,2]
[387172743,1758606651044,-500.0,0.00019996,2]
[387172744,1758606651054,-500.0,0.00019996,2]
[387172745,1758606651063,-151.59168825,0.00019996,2]
[387172746,1758606651074,-150.0,0.00019996,2]
[387172747,1758606651084,-400.0,0.00019996,2]
[387172748,1758606651094,-150.0,0.00019996,2]
[387172749,1758606651104,-150.0,0.00019996,2]
[387172750,1758606651114,-667.61,0.00019996,2]
[387172751,1758606651124,-1508.0,0.00019996,2]
[387172752,1758606651133,-400.0,0.00019996,2]
[387172753,1758606651143,-500.0,0.00019996,2]
[387172754,1758606651153,-150.0,0.00019996,2]
[387172755,1758606651163,-400.0,0.00019996,2]
[387172756,1758606651173,-743.54,0.00019996,2]
[387172757,1758606651183,-461.52,0.00019996,2]
[387172758,1758606651192,-150.0,0.00019996,2]
[387172759,1758606651202,-500.0,0.00019996,2]
[387172760,1758606651212,-151.93547695,0.00019996,2]
[387172761,1758606651222,-500.0,0.00019996,2]
[387172762,1758606651232,-847.6,0.00019996,2]
[387172763,1758606651242,-150.0,0.00019996,2]
[387172764,1758606651253,-500.0,0.00019996,2]
[387172765,1758606651263,-500.0,0.00019996,2]
[387172766,1758606651272,-400.0,0.00019996,2]
[387172767,1758606651282,-400.0,0.00019996,2]
[387172768,1758606651292,-500.0,0.00019996,2]
[387172769,1758606651302,-151.4112883,0.00019996,2]
[387172770,1758606651311,-500.0,0.00019996,2]
[387172771,1758606651321,-150.0,0.00019996,2]
[387172772,1758606651331,-500.0,0.00019996,2]
[387172773,1758606651341,-500.0,0.00019996,2]
[387172774,1758606651351,-150.0,0.00019996,2]
[387172775,1758606651360,-150.0,0.00019996,2]
[387172776,1758606651370,-150.0,0.00019996,2]
[387172777,1758606651380,-466.0,0.00019996,2]
[387172778,1758606651390,-447.0,0.00019996,2]
[387172779,1758606651400,-500.0,0.00019996,2]
[387172780,1758606651410,-200.0,0.00019996,2]
[387172781,1758606651420,-500.0,0.00019996,2]
[387172782,1758606651430,-580.44791115,0.00019996,2]
[387172783,1758606651440,-500.0,0.00019996,2]
[387172784,1758606651449,-500.0,0.00019996,2]
[387172785,1758606651461,-500.0,0.00019996,2]
[387172786,1758606651471,-500.0,0.00019996,2]
[387172787,1758606651480,-500.0,0.00019996,2]
[387172788,1758606651490,-500.0,0.00019996,2]
[387172789,1758606651499,-500.0,0.00019996,2]
[387172790,1758606651509,-400.0,0.00019997,2]
[387172791,1758606651518,-400.0,0.00019997,2]
[387172792,1758606651529,-400.0,0.00019997,2]
[387172793,1758606651538,-400.0,0.00019997,2]
[387172794,1758606651548,-400.0,0.00019997,2]
[387172795,1758606651558,-400.0,0.00019997,2]
[387172796,1758606651568,-402.72095074,0.00019997,2]
[387172797,1758606651578,-400.0,0.00019997,2]
[387172798,1758606651587,-400.0,0.00019997,2]
[387172799,1758606651598,-400.0,0.00019997,2]
[387172800,1758606651608,-400.0,0.00019997,2]
[387172801,1758606651618,-401.40444228,0.00019997,2]
[387172802,1758606651628,-400.0,0.00019997,2]
[387172803,1758606651638,-402.43111982,0.00019997,2]
[387172804,1758606651648,-211.51547744,0.00019997,2]
[387172805,1758606651658,-541.12888031,0.00019997,2]
[387172806,1758606651668,-417.45756673,0.00019997,2]
[387172807,1758606651679,-400.79019276,0.00019997,2]
[387172808,1758606651689,-400.0,0.00019997,2]
[387172809,1758606651700,-400.63370981,0.00019997,2]
[387172810,1758606651712,-400.0,0.00019997,2]
[387172811,1758606651722,-400.0,0.00019997,2]
[387172812,1758606651732,-400.0,0.00019997,2]
[387172813,1758606651744,-409.80165615,0.00019997,2]
[387172814,1758606651754,-418.30116137,0.00019997,2]
[387172815,1758606651764,-400.0,0.00019997,2]
[387172816,1758606651774,-403.59576811,0.00019997,2]
[387172817,1758606651784,-400.0,0.00019997,2]
[387172818,1758606651794,-400.0,0.00019997,2]
[387172819,1758606651808,-400.0,0.00019997,2]
[387172820,1758606651818,-401.43415226,0.00019997,2]
[387172821,1758606651827,-400.0,0.00019997,2]
[387172822,1758606651837,-400.0,0.00019997,2]
[387172823,1758606651848,-400.0,0.00019997,2]
[387172824,1758606651858,-400.0,0.00019997,2]
[387172825,1758606651868,-361.76212807,0.00019997,2]
[387172826,1758606651878,-400.0,0.00019997,2]
[387172827,1758606651888,-400.0,0.00019997,2]
[387172828,1758606651899,-402.4168927,0.00019997,2]
[387172829,1758606651908,-404.05470622,0.00019997,2]
[387172830,1758606651919,-400.0,0.00019997,2]
[387172831,1758606651929,-400.0,0.00019997,2]
[387172832,1758606651939,-400.0,0.00019997,2]
[387172833,1758606651948,-400.92115182,0.00019997,2]
[387172834,1758606651959,-400.0,0.00019997,2]
[387172835,1758606651969,-150.0,0.00019997,2]
[387172836,1758606651979,-150.3516582,0.00019997,2]
[387172837,1758606651989,-150.0,0.00019997,2]
[387172838,1758606651999,-150.0,0.00019997,2]
[387172839,1758606652009,-150.0,0.00019997,2]
[387172840,1758606652019,-150.0,0.00019997,2]
[387172841,1758606652029,-152.83721032,0.00019997,2]
[387172842,1758606652039,-150.35270913,0.00019997,2]
[387172843,1758606652048,-500.0,0.00019997,2]
[387172844,1758606652058,-150.0,0.00019997,2]
[387172845,1758606652067,-150.0,0.00019997,2]
[387172846,1758606652077,-150.0,0.00019997,2]
[387172847,1758606652087,-150.0,0.00019997,2]
[387172848,1758606652097,-150.6585101,0.00019997,2]
[387172849,1758606652108,-150.0,0.00019997,2]
[387172850,1758606652118,-152.03189646,0.00019997,2]
[387172851,1758606652128,-152.27545438,0.00019997,2]
[387172852,1758606652137,-502.61,0.00019997,2]
[387172853,1758606652147,-400.0,0.00019997,2]
[387172854,1758606652157,-500.0,0.00019997,2]
[387172855,1758606652167,-517.35116017,0.00019997,2]
[387172856,1758606652176,-4835.3280698,0.00019998,2]
[387172857,1758606652186,-21509.0115867,0.00019998,2]
[387172858,1758606652195,-208342.9276601,0.00019998,2]
[387172859,1758606652205,-157.9411924,0.00019998,2]
[387172860,1758606652215,-2000.0,0.00019998,2]
[387172861,1758606652224,-151.0,0.00019998,2]
[387172862,1758606652235,-151.0,0.00019998,2]
[387172863,1758606652244,-151.0,0.00019998,2]
[387172864,1758606652254,-151.0,0.00019998,2]
[387172865,1758606652264,-1000.0,0.00019999,2]
[387172866,1758606652274,-502.61,0.00019999,2]
[387172867,1758606652284,-564.10599542,0.00019999,2]
[387172868,1758606652294,-153.82148996,0.00019999,2]
[387172869,1758606652304,-2000.0,0.0002,2]
[387172870,1758606652314,-2000.0,0.0002,2]
[387172871,1758606652324,-1000.0,0.0002,2]
[387172872,1758606652335,-1000.0,0.0002,2]
[387172873,1758606652345,-104648.0927742,0.0002,2]
[387172874,1758606652356,-3151.93787407,0.0002,5]
[387172875,1758606652366,-7773.17559074,0.0002,2]
[387172876,1758606652376,-1000.0,0.0002,2]
[387172877,1758606652387,-1000.0,0.0002,2]
[387172878,1758606652398,-1000.0,0.0002,2]
[387172879,1758606652409,-805.56,0.0002,2]
[387172880,1758606652420,-500.0,0.0002,2]
[387172881,1758606652431,-500.0,0.0002,2]
[387172882,1758606652441,-500.0,0.0002,2]
[387172883,1758606652451,-500.0,0.0002,2]
[387172884,1758606652461,-500.0,0.0002,2]
[387172885,1758606652471,-500.0,0.0002,2]
[387172886,1758606652482,-500.0,0.0002,2]
[387172887,1758606652492,-500.0,0.0002,2]
[387172888,1758606652502,-500.0,0.0002,2]
[387172889,1758606652512,-500.0,0.0002,2]
[387172890,1758606652522,-500.0,0.0002,2]
[387172891,1758606652532,-500.0,0.0002,2]
[387172892,1758606652542,-500.0,0.0002,2]
[387172893,1758606652552,-500.0,0.0002,2]
[387172894,1758606652562,-500.0,0.0002,2]
[387172895,1758606652572,-500.0,0.0002,2]
[387172896,1758606652582,-528.50784931,0.0002,2]
[387172897,1758606652592,-4000.0,0.0002,4]
[387172898,1758606652603,-168.0,0.00020014,2]
[387172899,1758606652613,-208.75,0.00020026,2]
[387172900,1758606652623,-150.0,0.00020046,4]
[387172901,1758606652633,-7642.2338379,0.0002007,2]
[387172902,1758606652643,-8562.97032778,0.0002008,2]
[387172903,1758606652653,-200.0,0.00020091,2]
[387172904,1758606652663,-200.0,0.00020092,2]
[387172905,1758606652673,-200.0,0.00020092,2]
[387172906,1758606652683,-400.0,0.00020117,2]
[387172907,1758606652693,-400.0,0.00020117,2]
[387172908,1758606652704,-400.0,0.00020117,2]
[387172909,1758606652715,-254.10048547,0.00020117,2]
[387172910,1758606652725,-400.0,0.00020117,2]
[387172911,1758606652736,-400.0,0.00020117,2]
[387172912,1758606652747,-400.0,0.00020117,2]
[387172913,1758606653014,-404.05544347,0.00020117,2]
[387172914,1758606653025,-299.66,0.00020117,2]
[387172915,1758606653035,-404.0731694,0.00020117,2]
[387172916,1758606653045,-400.0,0.00020117,2]
[387172917,1758606653056,-490.21,0.00020117,2]
[387172918,1758606653065,-400.0,0.00020117,2]
[387172919,1758606653075,-400.0,0.00020117,2]
[387172920,1758606653085,-708.2,0.00020117,2]
[387172921,1758606653094,-400.0,0.00020117,2]
[387172922,1758606653104,-400.0,0.00020117,2]
[387172923,1758606653113,-1094.34,0.00020117,2]
[387172924,1758606653123,-400.0,0.00020117,2]
[387172925,1758606653133,-400.0,0.00020117,2]
[387172926,1758606653143,-400.0,0.00020117,2]
[387172927,1758606653153,-593.45,0.00020117,2]
[387172928,1758606653163,-880.86,0.00020117,2]
[387172929,1758606653172,-9774.27257195,0.00020144,2]
[387172930,1758606653182,-1000.0,0.00020153,2]
[387172931,1758606653191,-1000.0,0.00020153,2]
[387172932,1758606653201,-1000.0,0.00020153,2]
[387172933,1758606653210,-1000.0,0.00020153,2]
[387172934,1758606653219,-1000.0,0.00020153,2]
[387172935,1758606653229,-1000.0,0.00020153,2]
[387172936,1758606653238,-307.8635,0.00020153,2]
[387172937,1758606653248,-11476.73221229,0.00020172,2]
[387172938,1758606653258,-200.0,0.00020196,2]
[387172939,1758606653267,-200.0,0.00020196,2]
[387172940,1758606653276,-1000.0,0.00020199,2]
[387172941,1758606653286,-1000.0,0.00020199,2]
[387172942,1758606653296,-246.87565,0.000202,2]
[387172943,1758606653306,-374.4,0.00020217,2]
[387172944,1758606653315,-159.31109911,0.00020217,2]
[387172945,1758606653324,-400.0,0.00020217,2]
[387172946,1758606653333,-407.76211337,0.00020217,2]
[387172947,1758606653344,-400.0,0.00020217,2]
[387172948,1758606653356,-402.13125638,0.00020217,2]
[387172949,1758606653365,-400.0,0.00020217,2]
[387172950,1758606653374,-400.0,0.00020217,2]
[387172951,1758606653383,-400.0,0.00020217,2]
[387172952,1758606653393,-190.9297456,0.00020217,2]
[387172953,1758606653403,-400.0,0.00020217,2]
[387172954,1758606653412,-400.0,0.00020217,2]
[387172955,1758606653422,-400.0,0.00020217,2]
[387172956,1758606653431,-400.0,0.00020217,2]
[387172957,1758606653441,-400.0,0.00020217,2]
[387172958,1758606653451,-400.0,0.00020217,2]
[387172959,1758606653461,-400.0,0.00020217,2]
[387172960,1758606653470,-400.0,0.00020217,2]
[387172961,1758606653479,-400.0,0.00020217,2]
[387172962,1758606653489,-400.0,0.00020217,2]
[387172963,1758606653498,-400.0,0.00020217,2]
[387172964,1758606653507,-400.0,0.00020217,2]
[387172965,1758606653517,-400.0,0.00020217,2]
[387172966,1758606653526,-400.0,0.00020217,2]
[387172967,1758606653536,-400.0,0.00020217,2]
[387172968,1758606653545,-400.0,0.00020217,2]
[387172969,1758606653555,-400.0,0.00020217,2]
[387172970,1758606653565,-400.0,0.00020217,2]
[387172971,1758606653574,-400.0,0.00020217,2]
[387172972,1758606653584,-402.11070533,0.00020217,2]
[387172973,1758606653594,-400.0,0.00020217,2]
[387172974,1758606653603,-400.0,0.00020217,2]
[387172975,1758606653613,-400.0,0.00020217,2]
[387172976,1758606653622,-400.0,0.00020217,2]
[387172977,1758606653632,-400.0,0.00020217,2]
[387172978,1758606653641,-400.0,0.00020217,2]
[387172979,1758606653651,-400.0,0.00020217,2]
[387172980,1758606653661,-400.0,0.00020217,2]
[387172981,1758606653671,-400.0,0.00020217,2]
[387172982,1758606653680,-402.49285291,0.00020217,2]
[387172983,1758606653690,-405.64669751,0.00020217,2]
[387172984,1758606653699,-400.0,0.00020217,2]
[387172985,1758606653708,-400.0,0.00020217,2]
[387172986,1758606653717,-400.0,0.00020217,2]
[387172987,1758606653726,-400.0,0.00020217,2]
[387172988,1758606653735,-400.0,0.00020217,2]
[387172989,1758606653745,-400.0,0.00020217,2]
[387172990,1758606653755,-400.0,0.00020217,2]
[387172991,1758606653766,-400.0,0.00020217,2]
[387172992,1758606653776,-400.0,0.00020217,2]
[387172993,1758606653786,-400.0,0.00020217,2]
[387172994,1758606653798,-400.0,0.00020217,2]
[387172995,1758606653808,-400.0,0.00020217,2]
[387172996,1758606653821,-400.0,0.00020217,2]
[387172997,1758606653831,-400.0,0.00020217,2]
[387172998,1758606653841,-400.0,0.00020217,2]
[387172999,1758606653852,-404.9983196,0.00020217,2]
[387173000,1758606653862,-400.0,0.00020217,2]
[387173001,1758606653871,-404.59271072,0.00020217,2]
[387173002,1758606653882,-437.18397526,0.00020217,2]
[387173003,1758606653892,-400.0,0.00020217,2]
[387173004,1758606653902,-400.0,0.00020217,2]
[387173005,1758606653912,-400.0,0.00020217,2]
[387173006,1758606653922,-400.0,0.00020217,2]
[387173007,1758606653933,-400.0,0.00020217,2]
[387173008,1758606653943,-400.0,0.00020217,2]
[387173009,1758606653954,-400.0,0.00020217,2]
[387173010,1758606653965,-414.47,0.00020217,2]
[387173011,1758606653975,-400.0,0.00020217,2]
[387173012,1758606653986,-400.0,0.00020217,2]
[387173013,1758606653996,-400.0,0.00020217,2]
[387173014,1758606654006,-400.0,0.00020217,2]
[387173015,1758606654016,-400.0,0.00020217,2]
[387173016,1758606654026,-400.0,0.00020217,2]
[387173017,1758606654036,-400.0,0.00020217,2]
[387173018,1758606654047,-400.0,0.00020217,2]
[387173019,1758606654057,-400.0,0.00020217,2]
[387173020,1758606654068,-400.0,0.00020217,2]
[387173021,1758606654082,-308.63195884,0.00020217,2]
[387173022,1758606654093,-400.0,0.00020217,2]
[387173023,1758606654103,-430.11348814,0.00020217,2]
[387173024,1758606654113,-400.0,0.00020217,2]
[387173025,1758606654123,-400.0,0.00020217,2]
[387173026,1758606654132,-400.0,0.00020217,2]
[387173027,1758606654142,-400.0,0.00020217,2]
[387173028,1758606654153,-400.0,0.00020217,2]
[387173029,1758606654162,-400.0,0.00020217,2]
[387173030,1758606654172,-403.55770408,0.00020217,2]
[387173031,1758606654182,-400.0,0.00020217,2]
[387173032,1758606654192,-400.0,0.00020217,2]
[387173033,1758606654201,-400.0,0.00020217,2]
[387173034,1758606654213,-400.0,0.00020217,2]
[387173035,1758606654223,-400.0,0.00020217,2]
[387173036,1758606654233,-400.0,0.00020217,2]
[387173037,1758606654243,-400.0,0.00020217,2]
[387173038,1758606654253,-400.0,0.00020217,2]
[387173039,1758606654262,-400.0,0.00020217,2]
[387173040,1758606654272,-400.0,0.00020217,2]
[387173041,1758606654282,-400.0,0.00020217,2]
[387173042,1758606654292,-400.0,0.00020217,2]
[387173043,1758606654301,-400.0,0.00020217,2]
[387173044,1758606654311,-400.0,0.00020217,2]
[387173045,1758606654320,-400.0,0.00020217,2]
[387173046,1758606654330,-403.9816212,0.00020217,2]
[387173047,1758606654340,-400.0,0.00020217,2]
[387173048,1758606654350,-411.04131673,0.00020217,2]
[387173049,1758606654362,-430.25774673,0.00020217,2]
[387173050,1758606654372,-400.0,0.00020217,2]
[387173051,1758606654382,-400.0,0.00020217,2]
[387173052,1758606654391,-400.0,0.00020217,2]
[387173053,1758606654400,-400.0,0.00020217,2]
[387173054,1758606654410,-400.0,0.00020217,2]
[387173055,1758606654419,-400.0,0.00020217,2]
[387173056,1758606654429,-405.76557787,0.00020217,2]
[387173057,1758606654439,-541.73,0.00020217,2]
[387173058,1758606654449,-400.0,0.00020217,2]
[387173059,1758606654460,-400.0,0.00020217,2]
[387173060,1758606654469,-400.0,0.00020217,2]
[387173061,1758606654479,-400.0,0.00020217,2]
[387173062,1758606654489,-407.69962795,0.00020217,2]
[387173063,1758606654498,-400.0,0.00020217,2]
[387173064,1758606654508,-403.28746353,0.00020217,2]
[387173065,1758606654517,-400.0,0.00020217,2]
[387173066,1758606654527,-1000.0,0.00020217,2]
[387173067,1758606654536,-400.0,0.00020217,2]
[387173068,1758606654546,-395.38595847,0.00020217,2]
[387173069,1758606654555,-400.0,0.00020218,2]
[387173070,1758606654564,-400.0,0.00020218,2]
[387173071,1758606654574,-400.0,0.00020218,2]
[387173072,1758606654583,-400.0,0.00020218,2]
[387173073,1758606654592,-401.44214191,0.00020218,2]
[387173074,1758606654602,-443.55729735,0.00020218,2]
[387173075,1758606654611,-400.0,0.00020218,2]
[387173076,1758606654621,-400.0,0.00020218,2]
[387173077,1758606654630,-404.74184824,0.00020218,2]
[387173078,1758606654640,-546.26,0.00020218,2]
[387173079,1758606654649,-459.17,0.00020218,2]
[387173080,1758606654660,-400.0,0.00020218,2]
[387173081,1758606654669,-594.39,0.00020218,2]
[387173082,1758606654679,-167.146727,0.00020218,2]
[387173083,1758606654688,-400.0,0.00020218,2]
[387173084,1758606654697,-400.0,0.00020218,2]
[387173085,1758606654708,-400.0,0.00020218,2]
[387173086,1758606654717,-413.61,0.00020218,2]
[387173087,1758606654727,-1791.94,0.00020218,2]
[387173088,1758606654736,-400.0,0.00020218,2]
[387173089,1758606654746,-727.44,0.00020218,2]
[387173090,1758606654756,-424.1,0.00020218,2]
[387173091,1758606654765,-680.28,0.00020218,2]
[387173092,1758606654775,-400.0,0.00020218,2]
[387173093,1758606654784,-400.0,0.00020218,2]
[387173094,1758606654795,-740.8,0.00020218,2]
[387173095,1758606654807,-780.25,0.00020218,2]
[387173096,1758606654816,-787.95,0.00020218,2]
[387173097,1758606654826,-400.9,0.00020218,2]
[387173098,1758606654836,-573.0,0.00020218,2]
[387173099,1758606654846,-439.84,0.00020218,2]
[387173100,1758606654855,-807.44,0.00020218,2]